bitfinex/quotes_SOLUSD_20260213
["timestamp","ask_amount","ask_price","bid_price","bid_amount"]
[1770993248234,0.60280627,81.057,81.01,17.64434365]
[1770993248515,0.60280627,81.106,81.051,0.61374801]
[1770993248702,17.64434365,81.09,81.051,0.61374801]
[1770993249027,17.64434365,81.12,81.08,17.64434365]
[1770993249336,0.60280627,81.138,81.1,17.64434365]
[1770993249614,0.1,81.14,81.11,17.64434365]
[1770993249920,0.1,81.14,81.101,0.61374801]
[1770993249921,0.1,81.14,81.12,17.64434365]
[1770993250100,0.1,81.14,81.121,12.32726421]
[1770993250298,17.64434365,81.19,81.131,0.61374801]
[1770993250533,17.64434365,81.2,81.162,0.61374801]
[1770993250819,12.31138026,81.226,81.15,17.64434365]
[1770993250820,17.64434365,81.19,81.15,17.64434365]
[1770993251022,17.64434365,81.21,81.16,17.64434365]
[1770993251236,0.60280627,81.212,81.15,17.64434365]
[1770993251397,17.64434365,81.17,81.13,17.64434365]
[1770993251600,0.60280627,81.169,81.13,17.64434365]
[1770993251804,17.64434365,81.16,81.12,17.64434365]
[1770993252105,12.31845674,81.179,81.14,17.64434365]
[1770993252294,12.31845674,81.179,81.111,30.82196003]
[1770993252295,17.64434365,81.15,81.111,12.32864133]
[1770993252494,17.64434365,81.14,81.071,0.61374801]
[1770993252697,17.64434365,81.14,81.1,17.64434365]
[1770993252910,17.64434365,81.14,81.11,17.64434365]
[1770993253118,0.60280627,81.155,81.09,17.64434365]
[1770993253397,17.64434365,81.13,81.09,17.64434365]
[1770993254008,17.64434365,81.11,81.068,0.61374801]
[1770993254202,12.32908801,81.109,81.07,17.64434365]
[1770993254406,17.64434365,81.15,81.101,0.61374801]
[1770993254607,17.64434365,81.15,81.1,17.64434365]
[1770993254608,0.60280627,81.19,81.141,0.61374801]
[1770993254818,12.31693948,81.189,81.15,17.64434365]
[1770993255320,17.64434365,81.18,81.14,17.64434365]
[1770993255523,0.60280627,81.2,80.989,74.08411536]
[1770993255524,17.64434365,81.15,81.098,0.61374801]
[1770993255703,0.60280627,81.136,81.081,0.61374801]
[1770993256021,17.64434365,81.16,81.12,17.64434365]
[1770993256214,17.64434365,81.13,81.09,18.25809166]
[1770993256416,17.64434365,81.12,81.047,4.61729252]
[1770993256603,17.64434365,81.12,81.08,17.64434365]
[1770993256809,141.70763864,81.153,81.1,17.64434365]
[1770993256810,17.64434365,81.14,81.1,17.64434365]
[1770993257128,49.27445841,81.178,81.056,30.84281415]
[1770993257129,26.81906235,81.344,81.062,73.4]
[1770993257308,47.64918449,81.413,81.062,73.4]
[1770993257309,33.36821352,81.471,81.26,17.64434365]
[1770993257510,33.3665326,81.481,81.39,17.64434365]
[1770993257823,7.99448218,81.455,81.391,29.8]
[1770993258021,13.32543534,81.473,81.42,17.64434365]
[1770993258225,17.64434365,81.568,81.392,29.8]
[1770993258226,0.71295362,81.552,81.45,17.64434365]
[1770993258430,0.71295362,81.552,81.423,49.1258285]
[1770993258431,12.25914004,81.572,81.49,17.64434365]
[1770993258722,0.71295362,81.499,81.423,49.1258285]
[1770993258914,0.21295362,81.499,81.45,17.64434365]
[1770993259218,9.73067221,81.69,81.4,17.64434365]
[1770993259219,17.64434365,81.57,81.49,18.25809166]
[1770993259420,17.64434365,81.56,81.472,0.61374801]
[1770993259614,17.64434365,81.52,81.416,0.61374801]
[1770993259813,17.64434365,81.51,81.46,17.64434365]
[1770993260019,17.64434365,81.53,81.455,0.61374801]
[1770993260215,17.64434365,81.53,81.48,17.64434365]
[1770993260416,300.37025228,81.566,81.45,17.64434365]
[1770993260727,45.68,81.567,81.423,12.28154207]
[1770993260728,45.68,81.567,81.443,0.61374801]
[1770993260911,17.64434365,81.51,81.452,0.61374801]
[1770993261110,17.64434365,81.5,81.45,17.64434365]
[1770993261427,0.60280627,81.519,81.46,17.64434365]
[1770993261606,0.60280627,81.519,81.461,0.61374801]
[1770993261806,0.60280627,81.519,81.48,17.64434365]
[1770993262021,45.64,81.565,81.429,0.61374801]
[1770993262022,0.60280627,81.499,81.429,0.61374801]
[1770993262327,0.60280627,81.528,81.46,18.25809166]
[1770993262501,0.60280627,81.469,81.39,17.64434365]
[1770993262706,0.60280627,81.469,81.41,17.64434365]
[1770993262907,0.60280627,81.485,81.43,17.64434365]
[1770993263135,73.48909845,81.645,81.47,17.64434365]
[1770993263136,0.60280627,81.539,81.47,17.64434365]
[1770993263306,48.99222077,81.646,81.491,0.61374801]
[1770993263506,73.40850218,81.735,81.4,17.64434365]
[1770993263507,17.64434365,81.57,81.531,0.61374801]
[1770993263704,12.25279976,81.614,81.54,17.64434365]
[1770993263920,48.98215968,81.663,81.462,55.48]
[1770993263921,48.98215968,81.663,81.551,0.61374801]
[1770993264121,51.26002647,81.688,81.591,0.61374801]
[1770993264122,140.78127485,81.687,81.591,0.61374801]
[1770993264320,17.64434365,81.65,81.592,12.25610353]
[1770993264641,0.1,81.6,81.556,0.61374801]
[1770993265006,17.64434365,81.64,81.586,0.61374801]
[1770993265242,17.64434365,81.61,81.561,0.61374801]
[1770993265534,17.64434365,81.6,81.56,0.61374801]
[1770993265707,42.84699948,81.686,81.531,0.61374801]
[1770993265708,0.60280627,81.601,81.531,0.61374801]
[1770993265905,17.64434365,81.58,81.531,0.61374801]
[1770993266111,17.64434365,81.56,81.514,0.61374801]
[1770993266308,30.64099989,81.591,81.54,17.64434365]
[1770993266531,17.64434365,81.59,81.541,0.61374801]
[1770993266718,17.64434365,81.58,81.541,0.61374801]
[1770993267034,17.64434365,81.57,81.521,0.61374801]
[1770993267230,0.60280627,81.603,81.532,0.61374801]
[1770993267416,12.24739742,81.65,81.591,0.61374801]
[1770993267606,17.64434365,81.64,81.591,0.61374801]
[1770993267809,17.64434365,81.64,81.581,0.61374801]
[1770993268131,17.64434365,81.67,81.611,0.61374801]
[1770993268458,17.64434365,81.65,81.556,98.09145218]
[1770993268611,0.60280627,81.619,81.531,49.06096625]
[1770993268816,0.60280627,81.619,81.56,17.64434365]
[1770993269012,17.64434365,81.6,81.545,72.5]
[1770993269229,0.60280627,81.6,81.486,159.53660749]
[1770993269533,17.64434365,81.6,81.54,17.64434365]
[1770993269736,18.24714992,81.61,81.55,17.64434365]
[1770993270039,17.64434365,81.58,81.521,5.36086188]
[1770993270242,4.61729252,81.644,81.55,17.64434365]
[1770993270444,17.64434365,81.57,81.511,0.61374801]
[1770993270643,17.64434365,81.56,81.513,0.72709375]
[1770993270827,17.64434365,81.53,81.481,0.72709375]
[1770993271020,17.64434365,81.53,81.481,12.99989354]
[1770993271217,17.64434365,81.6,81.464,56.10709375]
[1770993271218,17.64434365,81.51,81.464,56.10709375]
[1770993271420,17.64434365,81.51,81.422,49.12668427]
[1770993271421,17.64434365,81.5,81.448,0.72709375]
[1770993271616,17.64434365,81.5,81.451,0.72709375]
[1770993272046,17.64434365,81.52,81.466,0.72709375]
[1770993272349,17.64434365,81.5,81.462,72.32]
[1770993272520,12.2700892,81.499,81.445,12.27819457]
[1770993272722,17.64434365,81.5,81.451,0.72709375]
[1770993272945,17.64434365,81.5,81.45,17.64434365]
[1770993273126,0.7183085,81.51,81.441,0.72709375]
[1770993273329,17.27368845,81.5,81.441,0.72709375]
[1770993273537,18.36265215,81.51,81.45,17.64434365]
[1770993273733,17.64434365,81.54,81.481,0.72709375]
[1770993274041,17.64434365,81.54,81.48,17.64434365]
[1770993274042,17.64434365,81.54,81.483,0.72709375]
[1770993274239,12.26346835,81.543,81.434,251.73760343]
[1770993274240,0.7183085,81.509,81.46,72.26]
[1770993274439,12.26873435,81.508,81.46,72.26]
[1770993274644,17.64434365,81.49,81.433,0.72709375]
[1770993274837,17.64434365,81.5,81.45,18.3714374]
[1770993275139,0.7183085,81.555,81.453,0.72709375]
[1770993275345,0.7183085,81.539,81.48,17.64434365]
[1770993275545,0.7183085,81.539,81.49,17.64434365]
[1770993275717,0.7183085,81.539,81.48,17.64434365]
[1770993275919,18.36265215,81.58,81.52,17.64434365]
[1770993276146,18.36265215,81.58,81.521,0.72709375]
[1770993276147,0.7183085,81.579,81.521,0.72709375]
[1770993276348,0.7183085,81.559,81.503,72.16]
[1770993276541,17.64434365,81.54,81.487,12.27189613]
[1770993276853,0.7280933,81.568,81.52,17.64434365]
[1770993277037,17.64434365,81.58,81.52,17.64434365]
[1770993277240,0.7280933,81.581,81.53,17.64434365]
[1770993277440,17.64434365,81.58,81.53,17.64434365]
[1770993277943,17.64434365,81.58,81.527,72.06]
[1770993278145,17.64434365,81.58,81.53,17.64434365]
[1770993278349,17.64434365,81.58,81.531,72.04]
[1770993278645,0.7280933,81.598,81.55,17.64434365]
[1770993278831,12.25535252,81.597,81.545,72.0]
[1770993279032,12.98344582,81.597,81.542,0.72593119]
[1770993279229,0.7280933,81.589,81.543,72.0]
[1770993279429,17.38903651,81.6,81.541,5.36086188]
[1770993279620,17.38903651,81.6,81.544,0.72593119]
[1770993279824,17.38903651,81.6,81.53,4.61729252]
[1770993279825,17.38903651,81.58,81.532,12.26512289]
[1770993280031,17.38903651,81.57,81.532,12.26512289]
[1770993280629,18.11712981,81.57,81.532,12.26512289]
[1770993281150,17.38903651,81.57,81.521,5.36086188]
[1770993281331,17.38903651,81.6,81.55,17.38903651]
[1770993281650,0.7280933,81.609,81.56,18.1149677]
[1770993281826,17.38903651,81.6,81.554,71.92]
[1770993282027,0.7280933,81.599,81.544,5.36086188]
[1770993282244,0.7280933,81.599,81.543,0.72593119]
[1770993282245,0.7280933,81.589,81.545,71.9]
[1770993282443,0.7280933,81.589,81.538,71.88]
[1770993282650,17.38903651,81.58,81.538,71.88]
[1770993282849,0.7280933,81.589,81.54,17.38903651]
[1770993283050,12.25706026,81.586,81.541,0.72593119]
[1770993283253,17.38903651,81.58,81.538,71.88]
[1770993283553,0.7280933,81.579,81.522,0.72593119]
[1770993283732,0.7280933,81.559,81.523,71.86]
[1770993283932,0.7280933,81.576,81.52,17.38903651]
[1770993284140,0.7280933,81.576,81.521,72.56593119]
[1770993284141,17.38903651,81.57,81.521,72.56593119]
[1770993284346,17.38903651,81.56,81.521,0.72593119]
[1770993284541,0.7280933,81.539,81.489,12.27159493]
[1770993284748,0.7280933,81.539,81.48,17.38903651]
[1770993284749,18.11712981,81.53,81.48,71.82]
[1770993284943,18.11712981,81.53,81.481,12.99873098]
[1770993285251,0.7280933,81.563,81.511,0.72593119]
[1770993285444,49.01843977,81.602,81.481,251.59239574]
[1770993285445,17.38903651,81.54,81.493,5.36086188]
[1770993285642,17.38903651,81.53,81.481,42.95479927]
[1770993285834,0.7280933,81.539,81.482,0.72593119]
[1770993286148,12.25986247,81.567,81.52,17.38903651]
[1770993286350,17.38903651,81.57,81.521,71.76]
[1770993286528,17.38903651,81.57,81.482,0.72593119]
[1770993286529,17.38903651,81.55,81.482,0.72593119]
[1770993286733,17.38903651,81.55,81.491,0.72593119]
[1770993286734,18.11712981,81.55,81.491,0.72593119]
[1770993286935,12.26256606,81.549,81.494,5.36086188]
[1770993287134,0.7280933,81.58,81.521,5.36086188]
[1770993287342,17.38903651,81.58,81.523,5.36086188]
[1770993287540,17.38903651,81.56,81.55,0.521478]
[1770993287746,0.7280933,81.559,81.506,0.72593119]
[1770993288036,18.11712981,81.55,81.507,71.68]
[1770993288237,0.7280933,81.549,81.508,71.66]
[1770993288543,0.7280933,81.549,81.493,42.9484741]
[1770993288544,17.38903651,81.53,81.498,71.66]
[1770993288953,17.38903651,81.53,81.499,12.2700892]
[1770993289136,0.7280933,81.528,81.487,71.64]
[1770993289536,0.7280933,81.544,81.491,0.72593119]
[1770993289952,17.38903651,81.55,81.5,17.38903651]
[1770993290156,17.38903651,81.57,81.511,5.36086188]
[1770993290356,17.38903651,81.53,81.481,42.95479927]
[1770993290662,18.11712981,81.53,81.482,72.32593119]
[1770993290858,18.11712981,81.53,81.482,0.72593119]
[1770993291060,18.11712981,81.53,81.357,17.38903651]
[1770993291061,12.26572465,81.528,81.483,71.56]
[1770993291257,0.7280933,81.529,81.484,71.56]
[1770993291465,0.7280933,81.546,81.49,17.38903651]
[1770993291647,12.26355036,81.543,81.49,17.38903651]
[1770993291846,12.26106254,81.559,81.501,0.72593119]
[1770993292143,0.7280933,81.558,81.51,17.38903651]
[1770993292342,0.7280933,81.558,81.501,0.72593119]
[1770993292544,0.7280933,81.558,81.51,17.38903651]
[1770993292746,0.7280933,81.589,81.53,17.38903651]
[1770993293055,44.48,81.626,81.52,17.38903651]
[1770993293056,12.25955939,81.569,81.52,17.38903651]
[1770993293259,12.25955939,81.569,81.521,0.72593119]
[1770993293765,0.7280933,81.575,81.521,0.72593119]
[1770993293967,0.7280933,81.575,81.53,17.38903651]
[1770993294263,12.25880795,81.574,81.521,0.72593119]
[1770993294466,0.7280933,81.575,81.53,17.38903651]
[1770993294642,48.99698543,81.638,81.58,0.52134226]
[1770993294643,0.7280933,81.593,81.58,0.52134226]
[1770993295042,17.38903651,81.61,81.58,0.52134226]
[1770993295261,0.7280933,81.609,81.58,0.52134226]
[1770993295557,0.7280933,81.599,81.58,1.04265673]
[1770993295958,17.38903651,81.59,81.548,12.98857136]
[1770993296162,91.8937463,81.616,81.551,0.72593119]
[1770993296163,17.38903651,81.6,81.551,0.72593119]
[1770993296342,0.7280933,81.628,81.571,0.72593119]
[1770993296548,0.7280933,81.628,81.581,0.72593119]
[1770993297146,17.38903651,81.62,81.582,42.90162045]
[1770993297443,17.38903651,81.63,81.583,71.88593119]
[1770993297845,0.7280933,81.636,81.62,0.46940038]
[1770993298064,0.7280933,81.636,81.583,71.88593119]
[1770993298256,17.38903651,81.64,81.591,0.72593119]
[1770993298451,12.24904763,81.639,81.591,0.72593119]
[1770993299067,17.38903651,81.64,81.592,42.89636237]
[1770993299368,17.38903651,81.63,81.592,42.89636237]
[1770993299566,0.7280933,81.641,81.592,42.89636237]
[1770993299567,17.38903651,81.64,81.592,42.89636237]
[1770993299868,17.38903651,81.64,81.593,71.06]
[1770993300053,17.38903651,81.63,81.593,71.06]
[1770993300366,0.7280933,81.623,81.58,17.38903651]
[1770993300567,0.7280933,81.639,81.561,0.72593119]
[1770993300753,0.80696972,81.579,81.522,0.8164325]
[1770993301065,0.80696972,81.579,81.529,0.8164325]
[1770993301371,53.62624383,81.618,81.495,0.8164325]
[1770993301372,17.38903651,81.54,81.495,0.8164325]
[1770993301549,17.38903651,81.54,81.486,12.27204673]
[1770993301550,0.80696972,81.549,81.501,0.8164325]
[1770993301746,17.38903651,81.56,81.51,17.38903651]
[1770993301958,17.38903651,81.58,81.531,0.8164325]
[1770993302248,44.2,81.614,81.53,17.38903651]
[1770993302249,0.80696972,81.616,81.553,0.8164325]
[1770993302448,0.80696972,81.616,81.522,71.08]
[1770993302449,0.80696972,81.616,81.571,0.8164325]
[1770993302746,0.80696972,81.619,81.572,71.06]
[1770993302947,17.38903651,81.6,81.551,0.8164325]
[1770993303164,13.06067033,81.608,81.555,0.8164325]
[1770993303343,13.06067033,81.608,81.54,49.05558324]
[1770993303344,17.38903651,81.58,81.495,0.8164325]
[1770993303548,17.38903651,81.57,81.521,0.8164325]
[1770993303765,17.38903651,81.59,81.541,0.8164325]
[1770993303967,29.64102013,81.62,81.561,0.8164325]
[1770993304171,0.80696972,81.599,81.545,0.8164325]
[1770993304358,0.80696972,81.569,81.511,0.8164325]
[1770993304567,0.80696972,81.569,81.511,71.04]
[1770993304870,17.38903651,81.55,81.512,71.8364325]
[1770993305071,17.38903651,81.55,81.494,0.8164325]
[1770993305373,12.2601606,81.565,81.52,17.38903651]
[1770993305553,0.80696972,81.559,81.511,0.8164325]
[1770993305758,0.80696972,81.549,81.494,0.8164325]
[1770993306071,17.38903651,81.55,81.501,0.8164325]
[1770993306269,12.25955939,81.569,81.511,0.8164325]
[1770993306478,17.38903651,81.56,81.511,0.8164325]
[1770993306656,0.80696972,81.568,81.52,18.20546901]
[1770993306965,0.80696972,81.568,81.52,0.8164325]
[1770993307262,17.38903651,81.55,81.507,71.02]
[1770993307667,0.80696972,81.559,81.505,71.02]
[1770993307869,12.25985999,81.567,81.55,0.42246034]
[1770993308055,17.38903651,81.57,81.526,0.8164325]
[1770993308452,17.38903651,81.58,81.53,0.8164325]
[1770993308672,17.38903651,81.56,81.516,0.8164325]
[1770993308972,17.38903651,81.56,81.511,70.98]
[1770993308973,0.80696972,81.569,81.521,0.8164325]
[1770993309270,0.80696972,81.559,81.514,30.66930768]
[1770993309674,0.80696972,81.549,81.492,0.8164325]
[1770993309866,17.38903651,81.55,81.494,0.8164325]
[1770993310168,17.38903651,81.56,81.511,0.8164325]
[1770993310374,0.80696972,81.563,81.511,0.8164325]
[1770993310580,0.80696972,81.559,81.513,0.8164325]
[1770993311074,44.1,81.597,81.521,0.8164325]
[1770993311075,0.80696972,81.567,81.521,0.8164325]
[1770993311370,0.80696972,81.559,81.522,12.26662741]
[1770993311677,0.80696972,81.589,81.531,0.8164325]
[1770993311969,17.38903651,81.6,81.551,0.8164325]
[1770993312172,17.38903651,81.6,81.553,0.8164325]
[1770993312371,0.80696972,81.579,81.536,0.8164325]
[1770993312558,0.80696972,81.583,81.531,0.8164325]
[1770993312753,0.80696972,81.598,81.541,0.8164325]
[1770993312952,0.80696972,81.589,81.541,0.8164325]
[1770993313152,29.64393847,81.6,81.55,18.20546901]
[1770993313370,0.80696972,81.579,81.542,12.26361874]
[1770993314172,0.80696972,81.579,81.536,12.26439073]
[1770993314371,17.38903651,81.57,81.536,12.26439073]
[1770993314562,0.80696972,81.579,81.536,12.26439073]
[1770993314762,0.80696972,81.559,81.529,12.26542416]
[1770993315077,104.16666666,81.6,81.494,0.8164325]
[1770993315078,0.80696972,81.539,81.494,0.8164325]
[1770993315261,0.80696972,81.539,81.495,12.27069145]
[1770993315578,18.19600623,81.55,81.496,0.8164325]
[1770993315871,0.80696972,81.539,81.495,12.27069145]
[1770993316074,17.38903651,81.53,81.495,42.94742008]
[1770993316372,17.38903651,81.55,81.501,0.8164325]
[1770993316876,4.61729252,81.588,81.5,17.38903651]
[1770993316877,12.2580566,81.579,81.521,0.8164325]
[1770993317058,0.80696972,81.559,81.518,70.86]
[1770993317371,17.38903651,81.57,81.511,0.8164325]
[1770993317572,0.80696972,81.589,81.531,0.8164325]
[1770993317776,0.80696972,81.588,81.531,0.8164325]
[1770993317977,17.38903651,81.58,81.521,0.8164325]
[1770993318164,17.38903651,81.58,81.531,0.8164325]
[1770993318363,12.25657216,81.589,81.54,17.38903651]
[1770993318567,17.38903651,81.61,81.551,0.8164325]
[1770993318861,0.80696972,81.589,81.537,0.8164325]
[1770993319066,0.80696972,81.569,81.521,0.8164325]
[1770993319271,17.38903651,81.57,81.521,0.8164325]
[1770993319272,13.06667941,81.568,81.522,42.93319594]
[1770993319472,0.80696972,81.559,81.522,42.93319594]
[1770993319668,17.38903651,81.55,81.522,12.26662741]
[1770993319878,0.80696972,81.559,81.522,12.26662741]
[1770993320076,18.19600623,81.55,81.508,12.26873435]
[1770993320271,0.80696972,81.549,81.508,42.94057024]
[1770993320777,0.80696972,81.549,81.508,12.26873435]
[1770993320969,17.38903651,81.55,81.5,17.38903651]
[1770993321288,17.38903651,81.58,81.521,0.8164325]
[1770993321486,12.2580566,81.579,81.521,0.8164325]
[1770993321660,17.38903651,81.59,81.531,0.8164325]
[1770993321979,73.4053217,81.738,81.51,4.61729252]
[1770993321980,17.38903651,81.57,81.511,0.8164325]
[1770993322159,17.38903651,81.56,81.512,70.76]
[1770993322359,17.38903651,81.57,81.512,0.8164325]
[1770993322561,17.38903651,81.56,81.512,0.8164325]
[1770993322979,17.38903651,81.54,81.502,42.94373143]
[1770993323177,17.38903651,81.58,81.521,0.8164325]
[1770993323384,17.38903651,81.57,81.56,0.36854718]
[1770993323764,17.38903651,81.57,81.523,0.8164325]
[1770993323966,18.05885937,81.55,81.51,12.26843332]
[1770993324373,17.38903651,81.54,81.494,12.27084202]
[1770993324580,17.38903651,81.54,81.48,17.38903651]
[1770993324768,43.92,81.577,81.363,36.86182957]
[1770993324769,0.80696972,81.489,81.363,36.86182957]
[1770993324972,17.38903651,81.46,81.4,17.38903651]
[1770993325681,17.38903651,81.44,81.351,55.26]
[1770993325990,17.38903651,81.39,81.327,12.29603944]
[1770993326174,17.38903651,81.36,81.327,43.03613805]
[1770993326376,17.38903651,81.38,81.327,43.03613805]
[1770993326587,17.38903651,81.39,81.331,0.95186556]
[1770993326794,17.38903651,81.38,81.331,0.95186556]
[1770993327091,17.38903651,81.37,81.331,0.95186556]
[1770993327386,12.28969263,81.369,81.306,0.95186556]
[1770993327690,17.38903651,81.39,81.331,0.95186556]
[1770993327989,17.38903651,81.35,81.305,12.29936658]
[1770993328171,17.38903651,81.35,81.306,0.95186556]
[1770993328693,17.38903651,81.35,81.29,17.38903651]
[1770993328694,17.38903651,81.33,81.29,13.25335314]
[1770993328870,17.38903651,81.34,81.291,0.95186556]
[1770993329067,0.02823245,81.377,81.294,0.95186556]
[1770993329273,12.28969263,81.369,81.313,0.95186556]
[1770993329474,17.38903651,81.38,81.321,0.95186556]
[1770993329677,17.38903651,81.38,81.331,0.95186556]
[1770993329678,17.38903651,81.37,81.331,0.95186556]
[1770993329987,17.38903651,81.37,81.317,0.95186556]
[1770993330198,17.38903651,81.36,81.317,0.95186556]
[1770993330485,43.00817357,81.38,81.317,0.95186556]
[1770993330486,17.38903651,81.37,81.317,0.95186556]
[1770993330695,17.38903651,81.38,81.321,0.95186556]
[1770993330873,17.38903651,81.36,81.312,43.04407713]
[1770993331080,17.38903651,81.34,81.307,0.95186556]
[1770993331394,17.38903651,81.35,81.308,12.29891277]
[1770993331595,0.05526158,81.385,81.307,0.95186556]
[1770993331890,17.38903651,81.34,81.28,17.38903651]
[1770993332073,17.38903651,81.34,81.281,0.95186556]
[1770993332274,0.05526158,81.309,81.244,30.77133154]
[1770993332472,0.05526158,81.324,81.246,0.95186556]
[1770993332679,17.38903651,81.28,81.21,17.38903651]
[1770993332873,17.38903651,81.24,81.202,0.95186556]
[1770993333093,17.38903651,81.24,81.226,6.41929079]
[1770993333270,17.38903651,81.24,81.187,0.98278415]
[1770993333592,49.19453311,81.31,81.219,0.98278415]
[1770993333782,49.18046667,81.334,81.219,0.98278415]
[1770993333783,12.29876151,81.309,81.241,0.98278415]
[1770993333985,17.38903651,81.29,81.241,0.98278415]
[1770993334176,17.38903651,81.29,81.239,0.98278415]
[1770993334377,17.38903651,81.29,81.241,0.98278415]
[1770993334580,12.29876151,81.309,81.251,0.98278415]
[1770993334774,17.38903651,81.31,81.253,0.98278415]
[1770993334976,17.38903651,81.31,81.261,0.98278415]
[1770993335184,17.38903651,81.3,81.261,0.98278415]
[1770993335382,17.38903651,81.3,81.157,37.14]
[1770993335383,17.38903651,81.33,81.271,0.98278415]
[1770993335577,17.38903651,81.35,81.301,0.98278415]
[1770993335786,49.1364293,81.406,81.301,0.98278415]
[1770993335787,17.38903651,81.37,81.321,0.98278415]
[1770993335985,17.38903651,81.38,81.321,0.98278415]
[1770993336294,17.38903651,81.38,81.341,0.98278415]
[1770993336478,17.38903651,81.38,81.334,70.76]
[1770993336796,17.38903651,81.38,81.335,0.98278415]
[1770993336999,17.38903651,81.39,81.335,0.98278415]
[1770993337294,17.38903651,81.37,81.32,0.98278415]
[1770993337596,12.31418387,81.459,81.364,0.98278415]
[1770993337799,0.03806951,81.445,81.381,0.98278415]
[1770993338005,190.27977262,81.459,81.381,0.98278415]
[1770993338006,17.38903651,81.44,81.381,0.98278415]
[1770993338177,17.38903651,81.42,81.381,0.98278415]
[1770993338382,17.38903651,81.44,81.391,0.98278415]
[1770993338581,17.38903651,81.44,81.393,0.98278415]
[1770993339081,17.38903651,81.46,81.411,0.98278415]
[1770993339282,17.38903651,81.44,81.394,0.98278415]
[1770993339480,17.38903651,81.43,81.395,82.92576693]
[1770993339681,12.28063711,81.429,81.394,0.98278415]
[1770993339899,0.04415065,81.46,81.396,70.62]
[1770993339900,17.38903651,81.44,81.396,70.62]
[1770993340082,17.38903651,81.44,81.38,17.38903651]
[1770993340083,17.38903651,81.42,81.375,0.98278415]
[1770993340284,0.05016552,81.449,81.381,0.98278415]
[1770993340482,17.38903651,81.44,81.391,0.98278415]
[1770993340682,17.38903651,81.44,81.393,0.98278415]
[1770993340885,17.44471104,81.46,81.421,0.98278415]
[1770993341197,17.44471104,81.47,81.421,0.98278415]
[1770993341500,0.0561062,81.511,81.45,17.44471104]
[1770993341702,17.44471104,81.51,81.461,0.98278415]
[1770993341883,17.44471104,81.5,81.461,0.98278415]
[1770993342488,0.06776674,81.53,81.461,0.98278415]
[1770993342797,0.06776674,81.53,81.471,0.98278415]
[1770993343002,17.44471104,81.52,81.48,17.44471104]
[1770993343403,17.44471104,81.54,81.491,0.98278415]
[1770993343696,17.44471104,81.51,81.478,0.98278415]
[1770993343900,17.44471104,81.51,81.465,0.98278415]
[1770993344081,17.44471104,81.49,81.456,70.46]
[1770993344402,17.44471104,81.49,81.457,70.46]
[1770993344982,17.44471104,81.48,81.45,12.27746923]
[1770993345195,17.44471104,81.48,81.436,0.98278415]
[1770993345384,17.44471104,81.48,81.438,0.98278415]
[1770993345683,4.61729252,81.526,81.451,0.98278415]
[1770993345899,17.44471104,81.5,81.451,0.98278415]
[1770993346483,17.44471104,81.48,81.451,0.98278415]
[1770993346683,17.44471104,81.46,81.407,0.98278415]
[1770993346891,43.62,81.528,81.407,0.98278415]
[1770993346892,17.44471104,81.44,81.408,70.34]
[1770993347091,17.44471104,81.46,81.421,0.98278415]
[1770993347403,17.44471104,81.44,81.393,0.98278415]
[1770993347704,29.72223548,81.45,81.403,0.98278415]
[1770993348203,17.44471104,81.47,81.421,0.98278415]
[1770993348392,17.44471104,81.47,81.42,17.44471104]
[1770993348393,17.44471104,81.44,81.403,0.98278415]
[1770993348588,17.44471104,81.45,81.405,0.98278415]
[1770993348795,0.09582055,81.471,81.405,0.98278415]
[1770993348996,17.44471104,81.47,81.431,0.98278415]
[1770993349308,17.44471104,81.45,81.416,0.98278415]
[1770993349602,0.10124163,81.487,81.423,0.98278415]
[1770993349603,17.44471104,81.46,81.423,0.98278415]
[1770993349802,49.05825857,81.536,81.422,12.2816929]
[1770993349803,0.10659555,81.558,81.451,0.98278415]
[1770993349986,17.44471104,81.54,81.491,0.98278415]
[1770993350294,17.44471104,81.53,81.493,0.98278415]
[1770993350885,30.65641516,81.549,81.493,0.98278415]
[1770993350886,17.44471104,81.54,81.493,0.98278415]
[1770993351087,17.44471104,81.55,81.51,18.42749519]
[1770993351285,17.44471104,81.56,81.512,0.98278415]
[1770993351489,17.44471104,81.56,81.48,5.36086188]
[1770993351490,17.44471104,81.59,81.551,12.26226533]
[1770993351802,17.44471104,81.6,81.553,0.98278415]
[1770993352204,17.44471104,81.62,81.581,0.98278415]
[1770993352403,17.44471104,81.6,81.551,42.91792865]
[1770993352704,17.44471104,81.6,81.521,12.26677788]
[1770993352705,17.44471104,81.56,81.521,12.26677788]
[1770993352907,17.44471104,81.55,81.502,70.2]
[1770993353086,17.44471104,81.56,81.502,70.2]
[1770993353288,17.44471104,81.54,81.501,42.94425835]
[1770993353482,0.22230904,81.571,81.454,49.10728251]
[1770993353483,17.44471104,81.55,81.503,42.94320454]
[1770993353687,12.26174328,81.555,81.503,12.26948701]
[1770993353910,17.44471104,81.53,81.481,12.27279979]
[1770993354104,49.02686348,81.588,81.481,12.27279979]
[1770993354105,17.44471104,81.56,81.5,17.44471104]
[1770993354307,49.02210184,81.596,81.5,17.44471104]
[1770993354308,12.25996564,81.567,81.5,17.44471104]
[1770993354606,17.44471104,81.54,81.502,0.93278415]